bitfinex-derivatives/quotes_BTCF0:USTF0_20241227
["timestamp","ask_amount","ask_price","bid_price","bid_amount"]
[1735341267269,0.22421287,94442.0,94441.0,0.413819]
[1735341267574,0.003,94442.0,94441.0,0.413819]
[1735341267877,0.012,94442.0,94441.0,0.414819]
[1735341268077,0.015,94442.0,94441.0,0.415819]
[1735341268271,0.22121287,94459.0,94441.0,0.3628]
[1735341268471,0.22121287,94459.0,94451.0,0.3608]
[1735341269078,0.0362,94461.0,94457.0,0.05301]
[1735341270168,0.004,94459.0,94457.0,0.05301]
[1735341270866,0.053002,94472.0,94460.0,0.053009]
[1735341271067,0.008,94461.0,94460.0,0.053009]
[1735341271363,0.008,94461.0,94460.0,0.413809]
[1735341271775,0.15836397,94463.0,94460.0,0.3608]
[1735341271978,0.15836397,94463.0,94462.0,0.053008]
[1735341273084,0.1265763,94464.0,94462.0,0.053008]
[1735341274169,0.1265763,94464.0,94462.0,0.054008]
[1735341274170,0.001,94463.0,94462.0,0.054008]
[1735341274376,0.001,94463.0,94462.0,0.055008]
[1735341274685,0.006,94464.0,94462.0,0.054008]
[1735341274870,0.007,94464.0,94462.0,0.002]
[1735341275270,0.007,94464.0,94462.0,0.001]
[1735341275472,0.001,94463.0,94462.0,0.002]
[1735341275973,0.006,94464.0,94462.0,0.002]
[1735341276373,0.006,94463.0,94462.0,0.002]
[1735341277183,0.053006,94466.0,94462.0,0.001]
[1735341277383,0.006,94464.0,94462.0,0.002]
[1735341278073,0.007,94463.0,94462.0,0.002]
[1735341279183,0.006,94463.0,94462.0,0.002]
[1735341279885,0.007,94463.0,94462.0,0.002]
[1735341280076,0.001,94463.0,94462.0,0.002]
[1735341280877,0.007,94463.0,94462.0,0.002]
[1735341284675,0.05855546,94463.0,94462.0,0.002]
[1735341285580,0.41935546,94463.0,94462.0,0.002]
[1735341289389,0.053017,94446.0,94444.0,0.527937]
[1735341289594,0.076,94445.0,94427.0,0.0375]
[1735341289897,0.05302,94441.0,94435.0,0.053023]
[1735341290096,0.05302,94441.0,94436.0,0.053022]
[1735341291296,0.3608,94444.0,94427.0,0.04794889]
[1735341291482,0.053024,94433.0,94429.0,0.053026]
[1735341291688,0.053024,94433.0,94427.0,0.01244889]
[1735341291888,0.053024,94433.0,94427.0,0.01044889]
[1735341292091,0.053024,94433.0,94424.0,0.053029]
[1735341292692,0.053024,94433.0,94429.0,0.001]
[1735341292994,0.15812982,94432.0,94429.0,0.001]
[1735341294295,0.15812982,94432.0,94424.0,0.058029]
[1735341294601,0.15812982,94431.0,94424.0,0.058029]
[1735341294897,0.15812982,94431.0,94429.0,0.001]
[1735341295490,0.15812982,94431.0,94424.0,0.053029]
[1735341295491,0.15812982,94431.0,94424.0,0.057029]
[1735341295698,0.15812982,94431.0,94425.0,0.053028]
[1735341295886,0.15812982,94432.0,94426.0,0.053027]
[1735341296088,0.15812982,94432.0,94429.0,0.001]
[1735341296289,0.15812982,94432.0,94430.0,0.413825]
[1735341296495,0.15812982,94432.0,94431.0,0.0381]
[1735341296887,0.15812982,94436.0,94431.0,0.0752]
[1735341298096,0.15812982,94436.0,94433.0,0.053023]
[1735341298291,0.12648034,94434.0,94433.0,0.053023]
[1735341300888,0.12748034,94434.0,94433.0,0.053023]
[1735341301090,0.001,94434.0,94433.0,0.053023]
[1735341302293,0.12748034,94434.0,94433.0,0.053023]
[1735341303798,0.12748034,94434.0,94433.0,0.06348774]
[1735341306195,0.001,94434.0,94433.0,0.06348774]
[1735341310102,0.001,94434.0,94430.0,0.3608]
[1735341310308,0.053025,94432.0,94430.0,0.3608]
[1735341311301,0.053025,94432.0,94430.0,0.3618]
[1735341311704,0.05156623,94431.0,94430.0,0.3618]
[1735341312101,0.05156623,94431.0,94430.0,0.37229391]
[1735341313804,0.08796623,94431.0,94430.0,0.37229391]
[1735341314200,0.0364,94431.0,94430.0,0.37229391]
[1735341314601,0.0364,94431.0,94430.0,0.3618]
[1735341316106,0.27790009,94431.0,94430.0,0.3618]
[1735341316306,0.63870009,94431.0,94430.0,0.001]
[1735341317110,0.44876623,94431.0,94430.0,0.001]
[1735341323309,0.44876623,94431.0,94430.0,0.414826]
[1735341323310,0.05156623,94431.0,94430.0,0.414826]
[1735341325421,0.15819312,94434.0,94433.0,0.053024]
[1735341326720,0.15919312,94434.0,94433.0,0.053024]
[1735341331212,0.0525613,94434.0,94433.0,0.053024]
[1735341332720,0.001,94434.0,94433.0,0.053024]
[1735341333514,0.001,94434.0,94433.0,0.06341883]
[1735341334923,0.01582375,94467.0,94447.0,0.037]
[1735341335123,0.10816475,94478.0,94477.0,0.052999]
[1735341335324,0.10816475,94478.0,94477.0,0.413799]
[1735341336529,0.1,94500.0,94493.0,0.05299]
[1735341336721,0.1,94500.0,94495.0,0.3608]
[1735341337423,0.052988,94497.0,94495.0,0.3608]
[1735341339026,0.1,94500.0,94489.0,0.052992]
[1735341339323,0.004,94497.0,94479.0,0.3608]
[1735341339522,0.052992,94491.0,94483.0,0.052995]
[1735341339723,0.1077286,94493.0,94479.0,0.3608]
[1735341340025,0.052995,94486.0,94479.0,0.3608]
[1735341340225,0.052995,94484.0,94479.0,0.3608]
[1735341340426,0.052996,94483.0,94479.0,0.3608]
[1735341341924,0.053996,94483.0,94479.0,0.3608]
[1735341342624,0.055996,94483.0,94479.0,0.3608]
[1735341344437,0.003,94483.0,94479.0,0.3608]
[1735341345032,0.003,94483.0,94481.0,0.052997]
[1735341346027,0.1,94500.0,94482.0,0.0409]
[1735341346232,0.1,94500.0,94494.0,0.052989]
[1735341346544,0.1,94500.0,94499.0,0.3608]
[1735341347541,0.052989,94495.0,94490.0,0.3608]
[1735341348037,0.3608,94492.0,94479.0,0.3608]
[1735341348253,0.001,94483.0,94479.0,0.3608]
[1735341348942,0.052995,94485.0,94479.0,0.3608]
[1735341350643,0.001,94483.0,94479.0,0.3608]
[1735341352238,0.001,94483.0,94476.0,0.42445915]
[1735341352554,0.052996,94482.0,94476.0,0.42445915]
[1735341354035,0.002,94483.0,94479.0,0.052998]
[1735341354237,0.001,94483.0,94479.0,0.052998]
[1735341354439,0.001,94482.0,94479.0,0.052998]
[1735341354847,0.002,94482.0,94479.0,0.052998]
[1735341355143,0.001,94482.0,94479.0,0.052998]
[1735341355345,0.001,94483.0,94479.0,0.052998]
[1735341355539,0.003,94483.0,94479.0,0.052998]
[1735341355739,0.003,94483.0,94481.0,0.3608]
[1735341356141,0.001,94483.0,94481.0,0.3608]
[1735341356350,0.002,94482.0,94481.0,0.3608]
[1735341356747,0.003,94482.0,94481.0,0.3608]
[1735341357450,0.004,94482.0,94481.0,0.3608]
[1735341357640,0.002,94482.0,94481.0,0.3608]
[1735341358445,0.004,94482.0,94481.0,0.3608]
[1735341362641,0.004,94482.0,94471.0,0.19050753]
[1735341362642,0.053002,94472.0,94471.0,0.19050753]
[1735341362845,0.413802,94472.0,94471.0,0.19050753]
[1735341363044,0.3608,94472.0,94466.0,0.25401004]
[1735341363755,0.053005,94467.0,94466.0,0.25401004]
[1735341363956,0.3608,94471.0,94466.0,0.25401004]
[1735341364255,0.3608,94471.0,94452.0,0.3608]
[1735341364256,0.053001,94473.0,94460.0,0.3608]
[1735341364454,0.1077286,94470.0,94460.0,0.3608]
[1735341364748,0.1077286,94470.0,94468.0,0.053004]
[1735341364948,0.053003,94471.0,94468.0,0.053004]
[1735341365347,0.003,94472.0,94471.0,0.053003]
[1735341365549,0.003,94472.0,94471.0,0.093403]
[1735341365751,0.003,94472.0,94471.0,0.130703]
[1735341365951,0.052995,94484.0,94471.0,0.0777]
[1735341366254,0.052995,94484.0,94480.0,0.052997]
[1735341366557,0.052995,94484.0,94482.0,0.052996]
[1735341367558,0.054995,94484.0,94482.0,0.24339353]
[1735341368258,0.055995,94484.0,94482.0,0.24339353]
[1735341368645,0.054995,94484.0,94482.0,0.052996]
[1735341368855,0.058995,94484.0,94482.0,0.052996]
[1735341369747,0.057995,94484.0,94482.0,0.052996]
[1735341372055,0.052997,94481.0,94480.0,0.19039753]
[1735341373257,0.054997,94481.0,94480.0,0.19039753]
[1735341373458,0.054997,94481.0,94479.0,0.3608]
[1735341374756,0.056997,94481.0,94479.0,0.3608]
[1735341375152,0.055997,94481.0,94479.0,0.3608]
[1735341375960,0.053001,94475.0,94473.0,0.053001]
[1735341377556,0.053001,94475.0,94473.0,0.054001]
[1735341378760,0.053001,94475.0,94473.0,0.001]
[1735341382254,0.052992,94490.0,94473.0,0.001]
[1735341382451,0.00158812,94494.0,94488.0,0.3608]
[1735341382654,0.052996,94483.0,94481.0,0.3608]
[1735341383267,0.052996,94483.0,94481.0,0.55119753]
[1735341384062,0.052996,94483.0,94481.0,0.3608]
[1735341385162,0.057996,94483.0,94481.0,0.3608]
[1735341390762,0.057996,94483.0,94472.0,0.0411]
[1735341390763,0.053001,94473.0,94472.0,0.19039753]
[1735341390965,0.413801,94473.0,94472.0,0.19039753]
[1735341392069,0.413801,94473.0,94454.0,0.053012]
[1735341392070,0.053006,94464.0,94463.0,0.36228]
[1735341392263,0.053006,94464.0,94463.0,0.3608]
[1735341393067,0.05301,94458.0,94455.0,0.053011]
[1735341393266,0.05301,94458.0,94456.0,0.053011]
[1735341393668,0.05101,94458.0,94456.0,0.053011]
[1735341394258,0.04601,94458.0,94456.0,0.056011]
[1735341395468,0.04601,94458.0,94456.0,0.003]
[1735341396275,0.04701,94458.0,94456.0,0.011]
[1735341398064,0.04801,94458.0,94456.0,0.008]
[1735341400074,0.053014,94450.0,94449.0,0.0394]
[1735341400375,0.053017,94446.0,94445.0,0.3608]
[1735341401875,0.053017,94446.0,94445.0,0.3648]
[1735341402564,0.053017,94446.0,94445.0,0.3658]
[1735341415777,0.053017,94446.0,94445.0,0.005]
[1735341417480,0.053017,94446.0,94445.0,0.004]
[1735341417983,0.007,94446.0,94438.0,0.413821]
[1735341418177,0.053021,94439.0,94438.0,0.413821]
[1735341418574,0.007,94446.0,94445.0,0.053017]
[1735341418776,0.1077286,94460.0,94445.0,0.053017]
[1735341418777,0.05301,94458.0,94457.0,0.053009]
[1735341419082,0.05459459,94465.0,94463.0,0.053007]
[1735341419286,0.05459459,94465.0,94464.0,0.1037]
[1735341420586,0.00158859,94465.0,94464.0,0.1037]
[1735341421283,0.06059459,94465.0,94464.0,0.0694]
[1735341421988,0.05859459,94465.0,94464.0,0.0684]
[1735341422288,0.06059459,94465.0,94464.0,0.0684]
[1735341427491,0.05959459,94465.0,94464.0,0.0684]
[1735341429188,0.00658859,94465.0,94464.0,0.0684]
[1735341430590,0.00558859,94465.0,94464.0,0.0684]
[1735341430978,0.00358859,94465.0,94464.0,0.0684]
[1735341431186,0.00658859,94465.0,94464.0,0.0684]
[1735341432082,0.13032513,94486.0,94464.0,0.0684]
[1735341432396,0.13032513,94486.0,94484.0,0.052995]
[1735341433689,0.13332513,94486.0,94484.0,0.052995]
[1735341433882,0.13532513,94486.0,94484.0,0.052995]
[1735341434083,0.13232513,94486.0,94484.0,0.052995]
[1735341434289,0.13532513,94486.0,94484.0,0.053995]
[1735341434683,0.13932513,94486.0,94484.0,0.054995]
[1735341435777,0.009,94486.0,94484.0,0.054995]
[1735341436182,0.009,94486.0,94485.0,0.1018]
[1735341437196,0.007,94486.0,94485.0,0.1028]
[1735341438398,0.007,94486.0,94485.0,0.1018]
[1735341439298,0.004,94486.0,94485.0,0.1018]
[1735341447196,0.1,94500.0,94499.0,0.052987]
[1735341447397,0.1,94500.0,94499.0,0.774587]
[1735341448318,0.105,94500.0,94499.0,0.774587]
[1735341449103,0.107,94500.0,94499.0,0.775587]
[1735341450603,0.105,94500.0,94499.0,0.774587]
[1735341450810,0.106,94500.0,94499.0,0.775587]
[1735341451500,0.1077286,94520.0,94499.0,0.775587]
[1735341451701,0.052977,94517.0,94514.0,0.3608]
[1735341451907,0.086978,94516.0,94514.0,0.3608]
[1735341452806,0.095978,94516.0,94514.0,0.3628]
[1735341461613,0.095978,94516.0,94514.0,0.002]
[1735341462513,0.095978,94516.0,94514.0,0.00053523]
[1735341464119,0.061978,94516.0,94515.0,0.052978]
[1735341465114,0.057978,94516.0,94515.0,0.053978]
[1735341465419,0.057978,94516.0,94515.0,0.054978]
[1735341465911,0.057978,94516.0,94515.0,0.052978]
[1735341466117,0.057978,94516.0,94515.0,0.053978]
[1735341468417,0.056978,94516.0,94515.0,0.053978]
[1735341473116,0.004,94516.0,94515.0,0.053978]
[1735341480524,0.00158761,94535.0,94515.0,0.053978]
[1735341480721,0.05455461,94535.0,94532.0,0.052968]
[1735341480919,0.05455461,94535.0,94533.0,0.0409]
[1735341481724,0.05655461,94535.0,94533.0,0.0409]
[1735341482429,0.05455461,94535.0,94533.0,0.0409]
[1735341482647,0.05855461,94535.0,94533.0,0.0429]
[1735341483751,0.05855461,94535.0,94533.0,0.05136462]
[1735341484051,0.05655461,94535.0,94533.0,0.05036462]
[1735341484353,0.05455461,94535.0,94533.0,0.0419]
[1735341488355,0.05455461,94535.0,94533.0,0.094867]
[1735341494354,0.00158761,94535.0,94533.0,0.053967]
[1735341494554,0.052967,94534.0,94533.0,0.053967]
[1735341495156,0.052967,94534.0,94533.0,0.001]
[1735341495360,0.095367,94534.0,94533.0,0.001]
[1735341497358,0.052967,94534.0,94533.0,0.001]
[1735341498354,0.05302878,94534.0,94533.0,0.001]
[1735341500460,0.09252878,94534.0,94533.0,0.001]
[1735341506052,6.178e-05,94534.0,94533.0,0.001]
[1735341506257,6.178e-05,94534.0,94533.0,0.053968]
[1735341516880,1e-08,94534.0,94533.0,0.053968]
[1735341518779,1e-08,94534.0,94533.0,0.001]
[1735341520281,1e-08,94534.0,94533.0,0.19133164]
[1735341521283,1e-08,94534.0,94533.0,0.001]
[1735341529988,1e-08,94534.0,94533.0,0.19136226]
[1735341530681,1e-08,94534.0,94533.0,0.001]
[1735341532984,1e-08,94534.0,94533.0,0.25477552]
[1735341534196,1e-08,94534.0,94533.0,0.001]
[1735341540501,1e-08,94534.0,94533.0,0.25512717]
[1735341542800,1e-08,94534.0,94533.0,0.001]
[1735341543508,0.04130001,94534.0,94533.0,0.001]
[1735341543699,0.12090001,94534.0,94533.0,0.001]
[1735341546798,1e-08,94534.0,94533.0,0.001]
[1735341554605,1e-08,94534.0,94533.0,0.00207368]
[1735341556320,1e-08,94534.0,94533.0,0.00316278]
[1735341558015,1e-08,94534.0,94533.0,0.00353989]
[1735341564914,1e-08,94534.0,94533.0,0.00407718]
[1735341566121,1e-08,94534.0,94533.0,0.00461751]
[1735341567121,1e-08,94534.0,94533.0,0.00499068]
[1735341569117,1e-08,94534.0,94533.0,0.00588439]
[1735341569521,1e-08,94534.0,94533.0,0.00643887]
[1735341570322,0.05296701,94534.0,94533.0,0.00643887]
[1735341571825,0.052967,94534.0,94533.0,0.00643887]
[1735341572324,0.052969,94530.0,94529.0,0.19059801]
[1735341572509,0.052972,94526.0,94525.0,0.25412717]
[1735341573824,0.052972,94526.0,94518.0,0.31751256]
[1735341573825,0.052975,94520.0,94519.0,0.0397]
[1735341575216,0.056975,94520.0,94519.0,0.0397]
[1735341575712,0.058975,94520.0,94519.0,0.0397]
[1735341576117,0.419775,94520.0,94519.0,0.0397]
[1735341576418,0.052978,94514.0,94513.0,0.04088681]
[1735341577523,0.052978,94514.0,94505.0,0.0397]
[1735341577524,0.052983,94506.0,94505.0,0.0397]
[1735341578919,0.052983,94506.0,94505.0,0.0417]
[1735341580626,0.055983,94506.0,94505.0,0.0407]
[1735341581033,0.055983,94506.0,94505.0,0.04078133]
[1735341581034,0.056983,94506.0,94505.0,0.04078133]
[1735341581729,0.06652514,94506.0,94505.0,0.04078133]
[1735341582132,0.06652514,94506.0,94505.0,0.04115122]
[1735341583732,0.056983,94506.0,94505.0,0.04115122]
[1735341588236,0.10773295,94515.0,94505.0,0.04115122]
[1735341588434,0.052982,94509.0,94508.0,0.05298]
[1735341588634,0.10773295,94515.0,94508.0,0.05298]
[1735341588834,0.10773295,94515.0,94509.0,0.0388]
[1735341588835,0.05298,94511.0,94509.0,0.0388]
[1735341589334,0.05298,94511.0,94510.0,0.00145122]
[1735341591837,0.05398,94511.0,94510.0,0.00145122]
[1735341592629,0.05398,94511.0,94509.0,0.0388]
[1735341592939,0.05398,94511.0,94510.0,0.00199419]
[1735341593737,0.05298,94511.0,94510.0,0.00199419]
[1735341594039,0.05398,94511.0,94510.0,0.00253716]
[1735341594335,0.05398,94511.0,94509.0,0.0388]
[1735341594542,0.05398,94511.0,94510.0,0.00290127]
[1735341596737,0.05298,94511.0,94510.0,0.00290127]
[1735341597041,0.05398,94511.0,94510.0,0.00290127]
[1735341604333,0.06363339,94511.0,94510.0,0.00290127]
[1735341605632,0.06363339,94511.0,94510.0,0.00434967]
[1735341606635,0.05398,94511.0,94510.0,0.00434967]
[1735341608541,0.05398,94511.0,94510.0,0.00489369]
[1735341609649,0.05398,94511.0,94510.0,0.00543771]
[1735341611451,0.05398,94511.0,94510.0,0.00666468]
[1735341611655,0.001,94511.0,94510.0,0.01655669]
[1735341611839,0.001,94511.0,94510.0,0.00666468]
[1735341612149,0.001,94511.0,94510.0,0.00688611]
[1735341612849,0.052978,94515.0,94510.0,0.00688611]
[1735341613051,0.052978,94515.0,94514.0,0.3608]
[1735341613637,0.052978,94515.0,94514.0,0.36478931]
[1735341614150,0.052978,94515.0,94514.0,0.36768611]
[1735341618351,0.052983,94505.0,94504.0,0.25412717]
[1735341618749,0.052983,94505.0,94504.0,0.22099511]
[1735341619349,0.052983,94505.0,94504.0,1.1e-07]
[1735341619653,0.052983,94505.0,94485.0,0.3608]
[1735341619654,0.052988,94498.0,94485.0,0.3608]
[1735341619955,0.052994,94486.0,94485.0,0.3608]
[1735341620153,0.052994,94486.0,94477.0,0.3608]
[1735341620154,0.052999,94478.0,94477.0,0.3608]
[1735341620343,0.052999,94478.0,94476.0,0.00148]
[1735341620344,0.053005,94467.0,94466.0,0.3608]
[1735341621750,0.053005,94467.0,94466.0,0.3678]
[1735341621949,0.048005,94467.0,94466.0,0.3678]
[1735341622745,0.048005,94467.0,94466.0,0.3718]
[1735341623963,0.048005,94467.0,94466.0,0.011]
[1735341624147,0.05301,94457.0,94456.0,0.00158795]
[1735341624846,0.053018,94443.0,94442.0,0.0395]
[1735341625446,0.053018,94443.0,94442.0,0.04057833]
[1735341625447,0.050018,94443.0,94442.0,0.04057833]
[1735341625946,0.050018,94443.0,94442.0,0.04112244]
[1735341626454,0.050018,94443.0,94442.0,0.04912244]
[1735341626653,0.051018,94443.0,94442.0,0.04912244]
[1735341626859,0.051018,94443.0,94442.0,0.05112244]
[1735341627858,0.051018,94443.0,94442.0,0.05148653]
[1735341632657,0.058018,94443.0,94442.0,0.04148653]
[1735341632951,0.062018,94443.0,94442.0,0.04148653]
[1735341633361,0.062018,94443.0,94442.0,0.04203292]
[1735341633757,0.062018,94443.0,94442.0,0.04257935]
[1735341634350,0.062018,94443.0,94442.0,0.04293877]
[1735341635646,0.062018,94443.0,94442.0,0.40373877]
[1735341640065,0.062018,94443.0,94442.0,0.40428593]
[1735341640651,0.062018,94443.0,94442.0,0.40483313]
[1735341641051,0.062018,94443.0,94442.0,0.40519101]
[1735341650966,0.062018,94443.0,94442.0,0.00489101]
[1735341651269,0.062018,94443.0,94431.0,0.0822]
[1735341651270,0.053024,94432.0,94431.0,0.0822]
[1735341652371,0.053024,94432.0,94431.0,0.0422]
[1735341652372,0.054024,94432.0,94431.0,0.0422]
[1735341652571,0.054024,94432.0,94427.0,0.0391]
[1735341652572,0.053027,94428.0,94427.0,0.0391]
[1735341653781,0.053031,94421.0,94412.0,0.0384]
[1735341654075,0.053032,94418.0,94413.0,0.0406]
[1735341655076,0.053032,94418.0,94417.0,0.00258862]
[1735341655263,0.053032,94418.0,94417.0,0.00658862]
[1735341656465,0.053032,94418.0,94417.0,0.005]
[1735341656668,0.053032,94418.0,94417.0,0.004]
[1735341656863,0.053032,94418.0,94417.0,0.005]
[1735341657075,0.413832,94418.0,94417.0,0.005]
[1735341657578,0.413832,94418.0,94417.0,0.004]
[1735341657765,0.053035,94414.0,94413.0,0.0406]
[1735341659079,0.053035,94414.0,94413.0,0.0436]
[1735341660380,0.053035,94414.0,94413.0,0.0446]
[1735341661782,0.053035,94414.0,94413.0,0.004]
[1735341662682,0.053041,94402.0,94401.0,0.041]
[1735341662880,0.053047,94392.0,94385.0,0.0387]
[1735341664779,0.054047,94392.0,94391.0,0.3648]
[1735341665171,0.054047,94392.0,94391.0,0.3678]
[1735341666673,0.054047,94392.0,94391.0,0.3648]
[1735341666870,0.054047,94392.0,94391.0,0.3668]
[1735341667486,0.054047,94392.0,94391.0,0.3648]
[1735341667678,0.054047,94392.0,94391.0,0.3668]
[1735341668467,0.054047,94392.0,94391.0,0.006]
[1735341668677,0.054047,94392.0,94382.0,0.3608]
[1735341668884,0.053051,94385.0,94382.0,0.3608]
[1735341669177,0.413851,94385.0,94373.0,0.3608]
[1735341669380,0.053062,94366.0,94365.0,0.0409]
[1735341669878,0.046062,94366.0,94365.0,0.0409]
[1735341670786,0.046062,94366.0,94365.0,0.0439]
[1735341671890,0.047062,94366.0,94365.0,0.0439]
[1735341673175,0.10778217,94374.0,94365.0,0.0439]
[1735341673371,0.053058,94373.0,94372.0,0.3608]
[1735341673582,0.053053,94381.0,94365.0,0.0439]
[1735341673892,0.053057,94374.0,94372.0,0.3608]
[1735341674281,0.053062,94366.0,94365.0,0.0439]
[1735341674591,0.053062,94366.0,94365.0,0.0429]
[1735341675677,0.054062,94366.0,94365.0,0.0429]
[1735341676182,0.053062,94366.0,94365.0,0.0409]
[1735341677389,0.053062,94366.0,94365.0,0.0439]
[1735341679293,0.053062,94366.0,94365.0,0.4047]
[1735341682590,0.053052,94383.0,94365.0,0.7047]
[1735341682785,0.3608,94398.0,94383.0,0.053051]
[1735341682993,0.3608,94398.0,94386.0,0.05305]
[1735341682994,0.053049,94388.0,94386.0,0.05305]
[1735341683188,0.10778217,94393.0,94384.0,0.12]
[1735341683386,0.10778217,94393.0,94392.0,0.3608]
[1735341683581,0.053046,94394.0,94392.0,0.3608]
[1735341684886,0.059046,94394.0,94392.0,0.3608]
[1735341685289,0.059046,94394.0,94384.0,0.12]
[1735341685290,0.053051,94385.0,94384.0,0.12]
[1735341686591,0.054051,94385.0,94384.0,0.12]
[1735341687496,0.056051,94385.0,94384.0,0.12]
[1735341689499,0.056051,94385.0,94382.0,0.3608]
[1735341689794,0.053052,94383.0,94382.0,0.3608]
[1735341690995,0.053058,94372.0,94371.0,0.0407]
[1735341691383,0.053058,94372.0,94370.0,0.3608]
[1735341691593,0.053062,94366.0,94365.0,0.25287159]
[1735341692195,0.053058,94372.0,94355.0,0.053067]
[1735341692196,0.053066,94359.0,94355.0,0.053067]
[1735341692988,0.051066,94359.0,94355.0,0.053067]
[1735341693300,0.051066,94359.0,94356.0,0.053067]
[1735341694284,0.001,94359.0,94356.0,0.053067]
[1735341694489,0.053066,94358.0,94356.0,0.053067]
[1735341695592,0.053066,94358.0,94356.0,0.057067]
[1735341696191,0.053066,94358.0,94356.0,0.053067]
[1735341696496,0.054066,94358.0,94356.0,0.053067]
[1735341707200,0.054066,94358.0,94354.0,0.0407]
[1735341707201,0.001,94358.0,94354.0,0.0407]
[1735341707409,0.053068,94355.0,94354.0,0.0407]
[1735341709312,0.053068,94355.0,94354.0,0.093768]
[1735341721320,0.05307,94351.0,94350.0,0.3608]
[1735341722116,0.05307,94351.0,94345.0,0.19050458]
[1735341722117,0.053073,94346.0,94345.0,0.19050458]
[1735341722313,0.413873,94346.0,94345.0,0.19050458]
[1735341722505,0.412873,94346.0,94345.0,0.19050458]
[1735341723522,0.41377672,94346.0,94345.0,0.19050458]
[1735341724213,0.41377672,94346.0,94331.0,0.3608]
[1735341724214,0.3618,94346.0,94331.0,0.3608]
[1735341724414,0.053074,94344.0,94331.0,0.3608]
[1735341724721,0.051074,94344.0,94331.0,0.3608]
[1735341725516,0.051074,94344.0,94343.0,0.00358981]
[1735341726019,0.052074,94344.0,94320.0,0.0816]
[1735341726319,0.053087,94321.0,94320.0,0.0816]
[1735341727615,0.054087,94321.0,94320.0,0.0816]
[1735341727819,0.054087,94321.0,94320.0,0.0826]
[1735341728222,0.001,94321.0,94320.0,0.0826]
[1735341728413,0.15759881,94335.0,94334.0,0.05308]
[1735341729015,0.053078,94337.0,94334.0,0.05308]
[1735341729824,0.053078,94336.0,94334.0,0.05308]
[1735341731123,0.002,94335.0,94334.0,0.05308]
[1735341731923,0.055078,94336.0,94334.0,0.05308]
[1735341732520,0.053078,94336.0,94334.0,0.05308]
[1735341732819,0.002,94335.0,94334.0,0.05308]
[1735341734316,0.002,94336.0,94334.0,0.05308]
[1735341734619,0.053079,94335.0,94334.0,0.05308]
[1735341735322,0.055079,94335.0,94334.0,0.05308]
[1735341735723,0.05308,94333.0,94332.0,0.3608]
[1735341737018,0.06208,94333.0,94332.0,0.3608]
[1735341738018,0.06908,94333.0,94332.0,0.3608]
[1735341740029,0.06908,94333.0,94326.0,0.3608]
[1735341740335,0.053083,94327.0,94326.0,0.3608]
[1735341741330,0.46681137,94327.0,94311.0,0.00159039]
[1735341741525,0.053092,94312.0,94311.0,0.00159039]
[1735341742935,0.057092,94312.0,94311.0,0.00159039]
[1735341743734,0.060092,94312.0,94311.0,0.00159039]
[1735341746527,0.15759881,94324.0,94311.0,0.66239039]
[1735341746735,0.03019881,94324.0,94323.0,0.3608]
[1735341746923,0.29690075,94330.0,94329.0,0.053082]
[1735341747434,0.10778217,94330.0,94329.0,0.053082]
[1735341748233,0.11678217,94330.0,94329.0,0.053082]
[1735341748428,0.12378217,94330.0,94329.0,0.053082]
[1735341750648,0.053084,94326.0,94324.0,0.09185807]
[1735341750932,0.053084,94326.0,94324.0,0.14494307]
[1735341751736,0.058084,94326.0,94324.0,0.135685]
[1735341752833,0.067084,94326.0,94324.0,0.135685]
[1735341753639,0.067084,94326.0,94324.0,0.001]
[1735341774555,0.053085,94325.0,94324.0,0.001]
[1735341775556,0.009,94326.0,94315.0,0.05309]
[1735341775753,0.006,94325.0,94323.0,0.3608]
[1735341776065,0.18311858,94332.0,94331.0,0.053081]
[1735341776247,0.18311858,94337.0,94331.0,0.3608]
[1735341776449,0.18311858,94337.0,94336.0,0.053078]
[1735341777959,0.16115756,94346.0,94342.0,0.053075]
[1735341778159,0.053073,94346.0,94343.0,0.0404]
[1735341778362,0.053073,94346.0,94344.0,0.053074]
[1735341779364,0.071073,94346.0,94345.0,0.0422]
[1735341780864,0.062073,94346.0,94345.0,0.0422]
[1735341781160,0.071073,94346.0,94345.0,0.0422]
[1735341781759,0.071073,94346.0,94345.0,0.0432]
[1735341782153,0.071073,94346.0,94345.0,0.0442]
[1735341785959,0.018,94346.0,94345.0,0.0442]
[1735341799073,0.3608,94374.0,94355.0,0.053068]
[1735341799377,0.053061,94368.0,94364.0,0.053062]
[1735341799562,0.24234001,94366.0,94364.0,0.053062]
[1735341799764,0.053062,94366.0,94364.0,0.053062]
[1735341800278,0.062062,94366.0,94364.0,0.053062]
[1735341800464,0.071062,94366.0,94364.0,0.053062]
[1735341800868,0.071062,94366.0,94364.0,0.054062]
[1735341801171,0.071062,94366.0,94364.0,0.002]
[1735341801365,0.018,94366.0,94364.0,0.055062]
[1735341802560,0.14424272,94366.0,94364.0,0.055062]
[1735341804371,0.14424272,94366.0,94364.0,0.06528566]
[1735341804567,0.12624272,94365.0,94364.0,0.06528566]
[1735341805771,0.13524272,94365.0,94364.0,0.06528566]
[1735341806082,0.009,94365.0,94364.0,0.06528566]
[1735341806376,0.009,94365.0,94364.0,0.06428566]
[1735341806579,0.018,94365.0,94364.0,0.06528566]
[1735341811780,0.12624272,94376.0,94375.0,0.053056]
[1735341811992,0.1578034,94382.0,94381.0,0.053053]
[1735341813071,0.1668034,94382.0,94381.0,0.054053]
[1735341813574,0.009,94382.0,94381.0,0.054053]
[1735341815480,0.009,94382.0,94381.0,0.055053]
[1735341816384,0.009,94382.0,94381.0,0.06542488]